fUSD/lending_fUSD_20240531
["ID","MTS","AMOUNT","RATE_DAILY","PERIOD"]
[328303988,1717127469889,-1257.81,0.00033299,11]
[328303989,1717127469899,-1257.81,0.00033299,11]
[328303990,1717127469909,-1257.81,0.00033299,11]
[328303991,1717127469918,-1257.81,0.00033299,11]
[328303992,1717127469928,-1257.81,0.00033299,11]
[328303993,1717127469938,-1257.81,0.00033299,11]
[328303994,1717127469948,-1237.33,0.00033299,11]
[328303995,1717127469958,-1257.81,0.00033299,11]
[328303996,1717127469968,-260.4,0.00033299,11]
[328303997,1717127469978,-1237.33,0.00033299,11]
[328303998,1717127469987,-1257.81,0.00033299,11]
[328303999,1717127469997,-1237.33,0.00033299,11]
[328304000,1717127470007,-1257.81,0.00033299,11]
[328304001,1717127470016,-1237.33,0.00033299,11]
[328304002,1717127470026,-1237.33,0.00033299,11]
[328304003,1717127470036,-918.19206071,0.00033299,11]
[328304004,1717127470065,-500.0,0.00032888,2]
[328304005,1717127470075,-500.0,0.00033298,2]
[328304006,1717127470085,-17.6830018,0.00033299,11]
[328304007,1717127470097,-321.93493749,0.00033299,11]
[328304008,1717127470108,-864.7138634,0.00033299,11]
[328304009,1717127470120,-372.6161366,0.00033299,11]
[328304010,1717127470130,-1257.81,0.00033299,11]
[328304011,1717127470140,-35.47741962,0.00033299,11]
[328304012,1717127470157,-859.49735212,0.00033299,11]
[328304013,1717127470169,-329.70014336,0.00033299,11]
[328304014,1717127470191,-12.6550849,0.00033299,11]
[328304015,1717127470201,-441.3449091,0.00033299,11]
[328304016,1717127470218,-342.3,0.00033299,11]
[328304017,1717127470246,-474.1650909,0.00033299,11]
[328304018,1717127470256,-95.4749091,0.00033299,11]
[328304019,1717127470268,-714.2364726,0.00033299,11]
[328304020,1717127470281,-427.6186183,0.00033299,11]
[328304021,1717127470291,-1257.81,0.00033299,11]
[328304022,1717127470303,-1237.33,0.00033299,11]
[328304023,1717127470313,-1257.81,0.00033299,11]
[328304024,1717127470323,-771.91903068,0.00033299,11]
[328304025,1717127470354,-254.86173603,0.00033299,11]
[328304026,1717127470366,-231.08923329,0.00033299,11]
[328304027,1717127470378,-1237.33,0.00033299,11]
[328304028,1717127470388,-1237.33,0.00033299,11]
[328304029,1717127470398,-1237.33,0.00033299,11]
[328304030,1717127470408,-1237.33,0.00033299,11]
[328304031,1717127470418,-19.21293854,0.00033299,11]
[328304032,1717127470432,-1218.11706146,0.00033299,11]
[328304033,1717127470442,-695.25137542,0.00033299,11]
[328304034,1717127470454,-542.07862458,0.00033299,11]
[328304035,1717127470464,-1237.42,0.00033299,11]
[328304036,1717127470474,-501.17,0.00033299,11]
[328304037,1717127470484,-501.17,0.00033299,11]
[328304038,1717127470494,-501.17,0.00033299,11]
[328304039,1717127470504,-501.17,0.00033299,11]
[328304040,1717127470513,-501.17,0.00033299,11]
[328304041,1717127470523,-501.17,0.00033299,11]
[328304042,1717127470533,-501.17,0.00033299,11]
[328304043,1717127470543,-501.17,0.00033299,11]
[328304044,1717127470553,-501.17,0.00033299,11]
[328304045,1717127470563,-501.17,0.00033299,11]
[328304046,1717127470574,-32.10137542,0.00033299,11]
[328304047,1717127470845,165.22231584,0.00014,10]
[328304048,1717128353181,-150.0,0.00019725,2]
[328304049,1717128353201,-376.5243,0.00024284,2]
[328304050,1717128353220,-156.03,0.00024384,2]
[328304051,1717128353239,-439.87093698,0.00025,2]
[328304052,1717128453124,-159.06,0.00024384,2]
[328304053,1717128453145,-217.52732863,0.00025,2]
[328304121,1717128641999,-392.60173439,0.00025,2]
[328304122,1717128642008,-158.86276178,0.000269,2]
[328304124,1717128642018,-1100.0,0.00027,2]
[328304126,1717128642028,-150.0,0.00028598,2]
[328304128,1717128642037,-179.57,0.00029159,2]
[328304130,1717128642047,-3052.61568298,0.00029463,7]
[328304144,1717128643312,-540.38699325,0.00029463,7]
[328304145,1717128643633,-1104.6360013,0.00029463,7]
[328304146,1717128643691,-3171.51265946,0.00029463,7]
[328304147,1717128643703,-195.84866301,0.00029463,7]
[328304148,1717128643714,-150.0,0.00029735,2]
[328304149,1717128643724,-250.0,0.00029872,2]
[328304150,1717128643734,-66.53270692,0.00029968,2]
[328304156,1717128646336,-1483.1855,0.00029968,2]
[328304157,1717128646662,-873.5886081,0.00029968,2]
[328304158,1717128646675,-1738.55912561,0.00029968,2]
[328304159,1717128646685,-5699.77274789,0.0003,2]
[328304160,1717128646694,-150.33411338,0.00030036,7]
[328304161,1717128646704,-250.0,0.00030132,2]
[328304162,1717128646713,-250.0,0.00030198,2]
[328304163,1717128646723,-519.2,0.00030358,2]
[328304164,1717128646733,-156.03,0.00030639,2]
[328304165,1717128646744,-288.58,0.0003101,2]
[328304166,1717128646754,-165.33104555,0.00031351,7]
[328304167,1717128646765,-179.57,0.00031423,2]
[328304168,1717128646775,-160.97462021,0.00031701,7]
[328304169,1717128646784,-466.53856341,0.00031955,2]
[328304170,1717128646796,-1674.30647634,0.00031955,2]
[328304171,1717128646809,-3178.08905904,0.00032,5]
[328304177,1717129535181,-150.0,0.00019725,2]
[328304178,1717129535201,-161.31,0.00024384,2]
[328304179,1717129535220,-162.84,0.00024384,2]
[328304180,1717129535240,-300.0,0.00028498,2]
[328304181,1717129535260,-150.0,0.00028598,2]
[328304182,1717129535281,-181.78,0.00028965,2]
[328304183,1717129535301,-76.68601065,0.00029698,2]
[328304184,1717129597104,-150.87364243,0.00029698,2]
[328304189,1717129831606,-150.0,0.00028598,2]
[328304190,1717129831616,-516.75744752,0.00029698,2]
[328304191,1717129831627,-898.53028455,0.00029698,2]
[328304192,1717129831639,-685.05424735,0.00029698,2]
[328304193,1717129831650,-258.76851609,0.00029698,2]
[328304194,1717129831668,-1575.19579204,0.00029698,2]
[328304195,1717129831678,-3145.76627767,0.0003,2]
[328304196,1717129831688,-332.51735565,0.0003,2]
[328304197,1717129831700,-517.9614323,0.0003,2]
[328304198,1717129831711,-734.82945434,0.0003,2]
[328304199,1717129831722,-68.28076176,0.00030122,7]
[328304200,1717129831733,-86.98760784,0.00030122,7]
[328304201,1717129831742,-397.33239216,0.00030122,2]
[328304202,1717129831753,-74.18760784,0.00030122,2]
[328304203,1717129831762,-575.17,0.00030367,2]
[328304204,1717129831771,-250.0,0.00030445,2]
[328304205,1717129831782,-250.0,0.0003051,2]
[328304206,1717129831791,-150.99,0.0003051,2]
[328304207,1717129831801,-285.0,0.00030567,7]
[328304208,1717129831811,-250.0,0.00030677,2]
[328304209,1717129831821,-415.36,0.00030754,2]
[328304210,1717129831830,-154.65048426,0.00030772,7]
[328304211,1717129831841,-164.0,0.0003091,2]
[328304212,1717129831851,-166.47182447,0.00030974,7]
[328304213,1717129831860,-169.54,0.00031002,2]
[328304214,1717129831869,-155.3583612,0.00031217,7]
[328304215,1717129831879,-181.78,0.00031228,2]
[328304216,1717129831889,-264.45323394,0.00031348,4]
[328304217,1717129831898,-152.0,0.00031796,3]
[328304218,1717129831907,-1124.95377705,0.0003189,2]
[328304219,1717129831917,-3659.91211656,0.000319,2]
[328304220,1717129831928,-29907.30175358,0.000319,2]
[328304221,1717129831943,-3913.38875614,0.000319,2]
[328304222,1717129831955,-299.95837372,0.000319,2]
[328304223,1717129831966,-283.48598828,0.000319,2]
[328304224,1717129831985,-1199.69951172,0.000319,2]
[328304225,1717129831994,-4953.73249193,0.000319,2]
[328304226,1717129832005,-5318.56012524,0.000319,2]
[328304227,1717129832016,-1375.88105219,0.000319,2]
[328304228,1717129832027,-1328.24274016,0.000319,2]
[328304229,1717129832038,-338.70707334,0.000319,2]
[328304230,1717129832050,-816.26491714,0.000319,2]
[328304231,1717129832058,-181.05530661,0.000319,2]
[328304249,1717129837461,-1251.34130064,0.000319,2]
[328304250,1717129837476,-729.82228752,0.000319,2]
[328304251,1717129837488,-914.0500234,0.000319,2]
[328304252,1717129837500,-1054.77994795,0.000319,2]
[328304253,1717129837512,-857.23661901,0.000319,2]
[328304254,1717129837532,-1009.91881608,0.000319,2]
[328304255,1717129837583,-5556.73676619,0.000319,2]
[328304256,1717129837648,-1438.8231326,0.000319,2]
[328304257,1717129837658,-500.0,0.000319,2]
[328304258,1717129837668,-1000.0,0.000319,2]
[328304259,1717129837678,-1000.0,0.000319,2]
[328304260,1717129837687,-2112.5581,0.000319,2]
[328304261,1717129837697,-183.23354116,0.000319,2]
[328304262,1717129837706,-2130.47827215,0.000319,2]
[328304263,1717129837716,-158.07,0.0003199,2]
[328304264,1717129837729,-14984.39808015,0.00032,5]
[328304265,1717129837740,-6422.7,0.00032,5]
[328304266,1717129837819,-385.81240221,0.00032,5]
[328304271,1717129841026,-607.72918061,0.00032,5]
[328304272,1717129841089,-574.12626436,0.00032,5]
[328304281,1717129842703,-704.5754563,0.00032,5]
[328304282,1717129842822,-575.11345079,0.00032,5]
[328304283,1717129842884,-703269.86634312,0.00032,5]
[328304284,1717129842895,-155.0,0.00032,4]
[328304285,1717129842905,-2130.47827209,0.00032086,2]
[328304286,1717129842915,-2130.47827209,0.00032271,2]
[328304287,1717129842924,-2130.47827209,0.00032457,2]
[328304288,1717129842934,-2130.47827209,0.00032643,2]
[328304289,1717129842945,-597.43072289,0.00032776,4]
[328304290,1717129842955,-3030.632,0.00032801,2]
[328304291,1717129842965,-597.43072289,0.00032815,4]
[328304292,1717129842975,-2130.47827209,0.00032829,2]
[328304293,1717129842984,-500.0,0.00032829,2]
[328304294,1717129842993,-597.43072289,0.00032853,4]
[328304295,1717129843003,-151.0,0.00032876,5]
[328304296,1717129843013,-500.0,0.00032876,11]
[328304297,1717129843024,-500.0,0.00032876,11]
[328304298,1717129843035,-500.0,0.00032876,11]
[328304299,1717129843045,-509.36054974,0.00032876,11]
[328304300,1717129843054,-610.95,0.00032876,11]
[328304301,1717129843063,-512.82497193,0.00032876,11]
[328304302,1717129843072,-504.75,0.00032876,11]
[328304303,1717129843081,-500.0,0.00032876,11]
[328304304,1717129843090,-510.92032207,0.00032876,11]
[328304305,1717129843099,-500.0,0.00032876,11]
[328304306,1717129843108,-487.68815463,0.00032876,11]
[328304307,1717129843117,-171.60178313,0.00032876,11]
[328304309,1717129843127,-500.0,0.00032876,11]
[328304310,1717129843136,-501.70595265,0.00032876,11]
[328304311,1717129843146,-500.0,0.00032876,11]
[328304312,1717129843156,-507.33385323,0.00032876,11]
[328304313,1717129843165,-500.0,0.00032876,11]
[328304314,1717129843175,-500.0,0.00032876,11]
[328304315,1717129843184,-510.40398882,0.00032876,11]
[328304316,1717129843194,-527.9,0.00032876,11]
[328304317,1717129843203,-500.0,0.00032876,11]
[328304318,1717129843212,-500.0,0.00032876,11]
[328304319,1717129843222,-500.0,0.00032876,11]
[328304320,1717129843231,-500.0,0.00032876,11]
[328304321,1717129843244,-510.08699187,0.00032876,11]
[328304322,1717129843252,-500.0,0.00032876,11]
[328304323,1717129843262,-500.0,0.00032876,11]
[328304324,1717129843271,-500.0,0.00032876,11]
[328304325,1717129843282,-337.16417585,0.00032876,11]
[328304326,1717129843295,-500.0,0.00032876,11]
[328304327,1717129843306,-500.0,0.00032876,11]
[328304328,1717129843316,-500.0,0.00032876,11]
[328304329,1717129843326,-552.97,0.00032876,11]
[328304330,1717129843336,-500.0,0.00032876,11]
[328304331,1717129843346,-519.64004983,0.00032876,11]
[328304332,1717129843355,-500.0,0.00032876,11]
[328304333,1717129843365,-500.0,0.00032876,11]
[328304334,1717129843375,-634.79,0.00032876,11]
[328304335,1717129843384,-521.11,0.00032876,11]
[328304336,1717129843394,-500.0,0.00032876,11]
[328304337,1717129843404,-330.71,0.00032876,11]
[328304338,1717129843413,-507.75076995,0.00032876,11]
[328304339,1717129843422,-515.94409365,0.00032876,11]
[328304340,1717129843432,-300.0,0.00032876,7]
[328304341,1717129843440,-500.0,0.00032876,11]
[328304342,1717129843450,-517.39282044,0.00032876,11]
[328304343,1717129843459,-582.94,0.00032876,11]
[328304344,1717129843468,-500.0,0.00032876,11]
[328304345,1717129843479,-376.51,0.00032876,11]
[328304346,1717129843488,-500.0,0.00032876,11]
[328304347,1717129843497,-500.0,0.00032876,11]
[328304348,1717129843507,-508.00926795,0.00032876,11]
[328304349,1717129843516,-500.0,0.00032876,11]
[328304350,1717129843526,-441.71,0.00032876,11]
[328304351,1717129843535,-500.0,0.00032876,11]
[328304352,1717129843545,-500.0,0.00032876,11]
[328304353,1717129843554,-509.9474434,0.00032876,11]
[328304354,1717129843564,-500.0,0.00032876,11]
[328304355,1717129843574,-581.83,0.00032876,11]
[328304356,1717129843583,-500.0,0.00032876,11]
[328304357,1717129843593,-379.71,0.00032876,11]
[328304358,1717129843602,-500.0,0.00032876,11]
[328304359,1717129843611,-520.61121654,0.00032876,11]
[328304360,1717129843620,-500.0,0.00032876,11]
[328304361,1717129843631,-500.0,0.00032876,11]
[328304362,1717129843640,-268.23,0.00032876,11]
[328304363,1717129843650,-500.0,0.00032876,11]
[328304364,1717129843661,-500.0,0.00032876,11]
[328304365,1717129843672,-500.0,0.00032876,11]
[328304366,1717129843681,-500.0,0.00032876,11]
[328304367,1717129843690,-500.0,0.00032876,11]
[328304368,1717129843700,-500.0,0.00032876,11]
[328304369,1717129843709,-500.0,0.00032876,11]
[328304370,1717129843718,-500.0,0.00032876,11]
[328304371,1717129843729,-511.64604561,0.00032876,11]
[328304372,1717129843738,-500.0,0.00032876,11]
[328304373,1717129843747,-375.64,0.00032876,11]
[328304374,1717129843758,-500.0,0.00032876,11]
[328304375,1717129843975,-500.0,0.00032876,11]
[328304376,1717129843984,-438.94,0.00032876,11]
[328304377,1717129843993,-500.0,0.00032876,2]
[328304378,1717129844002,-500.0,0.00032876,2]
[328304379,1717129844011,-500.0,0.00032876,2]
[328304380,1717129844021,-500.0,0.00032876,11]
[328304381,1717129844030,-500.0,0.00032876,11]
[328304382,1717129844039,-500.0,0.00032876,11]
[328304383,1717129844048,-644.63,0.00032876,11]
[328304384,1717129844057,-500.0,0.00032876,11]
[328304385,1717129844066,-500.0,0.00032876,11]
[328304386,1717129844076,-500.0,0.00032876,11]
[328304387,1717129844085,-500.0,0.00032876,11]
[328304388,1717129844094,-500.0,0.00032876,11]
[328304389,1717129844103,-644.97,0.00032876,11]
[328304390,1717129844112,-500.0,0.00032876,11]
[328304391,1717129844123,-185.98,0.00032876,11]
[328304392,1717129844132,-500.0,0.00032876,11]
[328304393,1717129844141,-500.0,0.00032876,11]
[328304394,1717129844152,-291.33,0.00032876,11]
[328304395,1717129844161,-500.0,0.00032876,11]
[328304396,1717129844170,-500.0,0.00032876,11]
[328304397,1717129844179,-648.64,0.00032876,11]
[328304398,1717129844188,-500.0,0.00032876,11]
[328304399,1717129844197,-500.0,0.00032876,11]
[328304400,1717129844206,-608.42999053,0.00032876,11]
[328304401,1717129844215,-500.0,0.00032876,11]
[328304402,1717129844223,-219.75,0.00032876,11]
[328304403,1717129844234,-500.0,0.00032876,11]
[328304404,1717129844248,-500.0,0.00032876,11]
[328304405,1717129844258,-426.13,0.00032876,11]
[328304406,1717129844267,-511.52566278,0.00032876,11]
[328304407,1717129844276,-510.28341226,0.00032876,11]
[328304408,1717129844286,-500.0,0.00032876,11]
[328304409,1717129844295,-215.99466154,0.00032876,11]
[328304410,1717129844304,-500.0,0.00032876,11]
[328304411,1717129844317,-514.43223461,0.00032876,11]
[328304412,1717129844327,-500.0,0.00032876,11]
[328304413,1717129844336,-232.79251952,0.00032876,11]
[328304414,1717129844346,-500.0,0.00032876,11]
[328304415,1717129844354,-500.0,0.00032876,11]
[328304416,1717129844363,-500.0,0.00032876,11]
[328304417,1717129844372,-500.0,0.00032876,11]
[328304418,1717129844381,-500.0,0.00032876,11]
[328304419,1717129844391,-500.0,0.00032876,11]
[328304420,1717129844400,-500.0,0.00032876,11]
[328304421,1717129844409,-254.18,0.00032876,11]
[328304422,1717129844418,-317.58,0.00032876,11]
[328304423,1717129844427,-506.46681203,0.00032876,11]
[328304424,1717129844437,-505.995102,0.00032876,11]
[328304425,1717129844446,-500.0,0.00032876,11]
[328304426,1717129844455,-500.0,0.00032876,11]
[328304427,1717129844464,-500.0,0.00032876,11]
[328304428,1717129844473,-500.0,0.00032876,11]
[328304429,1717129844483,-168.41,0.00032876,11]
[328304430,1717129844493,-175.99,0.00032876,11]
[328304431,1717129844502,-500.0,0.00032876,11]
[328304432,1717129844511,-500.0,0.00032876,11]
[328304433,1717129844520,-483.17698744,0.00032876,11]
[328304434,1717129844530,-500.0,0.00032876,11]
[328304435,1717129844539,-500.0,0.00032876,11]
[328304436,1717129844548,-485.55,0.00032876,11]
[328304437,1717129844557,-500.0,0.00032876,11]
[328304438,1717129844566,-500.0,0.00032876,11]
[328304439,1717129844575,-302.74,0.00032876,11]
[328304440,1717129844585,-472.0,0.00032876,11]
[328304441,1717129844594,-500.0,0.00032876,11]
[328304442,1717129844603,-431.34,0.00032876,11]
[328304443,1717129844612,-500.0,0.00032876,11]
[328304444,1717129844621,-500.0,0.00032876,11]
[328304445,1717129844630,-395.94,0.00032876,11]
[328304446,1717129844639,-619.24705232,0.00032876,11]
[328304447,1717129844648,-500.0,0.00032876,11]
[328304448,1717129844656,-500.0,0.00032876,11]
[328304449,1717129844666,-500.0,0.00032876,11]
[328304450,1717129844676,-260.37808849,0.00032876,11]
[328304451,1717129844686,-500.0,0.00032876,11]
[328304452,1717129844695,-500.0,0.00032876,11]
[328304453,1717129844704,-500.0,0.00032876,11]
[328304454,1717129844713,-454.16,0.00032876,11]
[328304455,1717129844722,-485.0,0.00032876,11]
[328304456,1717129844733,-637.97360744,0.00032876,11]
[328304457,1717129844742,-500.0,0.00032876,11]
[328304458,1717129844751,-525.17,0.00032876,11]
[328304459,1717129844760,-500.0,0.00032876,11]
[328304460,1717129844769,-617.86,0.00032876,11]
[328304461,1717129844778,-511.53436242,0.00032876,11]
[328304462,1717129844786,-500.0,0.00032876,11]
[328304463,1717129844795,-510.87516836,0.00032876,11]
[328304464,1717129844804,-500.0,0.00032876,11]
[328304465,1717129844813,-520.14339637,0.00032876,11]
[328304466,1717129844822,-627.44,0.00032876,11]
[328304467,1717129844831,-500.0,0.00032876,11]
[328304468,1717129844840,-452.69,0.00032876,11]
[328304469,1717129844849,-500.0,0.00032876,11]
[328304470,1717129844859,-500.0,0.00032876,11]
[328304471,1717129844868,-500.0,0.00032876,11]
[328304472,1717129844878,-500.0,0.00032876,11]
[328304473,1717129844887,-500.0,0.00032876,11]
[328304474,1717129844895,-175.31,0.00032876,11]
[328304475,1717129844904,-515.94094553,0.00032876,11]
[328304476,1717129844913,-500.0,0.00032876,11]
[328304477,1717129844923,-500.0,0.00032876,11]
[328304478,1717129844932,-500.0,0.00032876,11]
[328304479,1717129844941,-170.47,0.00032876,11]
[328304480,1717129844950,-500.0,0.00032876,11]
[328304481,1717129844959,-500.0,0.00032876,11]
[328304482,1717129844968,-500.0,0.00032876,11]
[328304483,1717129844977,-500.0,0.00032876,11]
[328304484,1717129844986,-640.03,0.00032876,11]
[328304485,1717129844995,-500.0,0.00032876,11]
[328304486,1717129845005,-456.82,0.00032876,11]
[328304487,1717129845014,-572.85,0.00032876,11]
[328304488,1717129845023,-510.82076841,0.00032876,11]
[328304489,1717129845035,-500.0,0.00032876,11]
[328304490,1717129845047,-500.0,0.00032876,11]
[328304491,1717129845056,-500.0,0.00032876,11]
[328304492,1717129845066,-500.0,0.00032876,11]
[328304493,1717129845076,-325.72,0.00032876,11]
[328304494,1717129845085,-500.0,0.00032876,11]
[328304495,1717129845094,-271.08952005,0.00032876,11]
[328304496,1717129845103,-500.0,0.00032876,11]
[328304497,1717129845114,-185.27846939,0.00032876,2]
[328304498,1717129845125,-500.0,0.00032876,11]
[328304499,1717129845135,-500.0,0.00032876,11]
[328304500,1717129845146,-500.0,0.00032876,11]
[328304501,1717129845155,-555.38,0.00032876,11]
[328304502,1717129845164,-501.65,0.00032876,11]
[328304503,1717129845174,-500.0,0.00032876,11]
[328304504,1717129845183,-563.35,0.00032876,11]
[328304505,1717129845192,-512.27,0.00032876,11]
[328304506,1717129845201,-510.9232639,0.00032876,11]
[328304507,1717129845210,-500.0,0.00032876,11]
[328304508,1717129845219,-515.81,0.00032876,11]
[328304509,1717129845229,-500.0,0.00032876,11]
[328304510,1717129845240,-500.0,0.00032876,11]
[328304511,1717129845250,-500.0,0.00032876,11]
[328304512,1717129845259,-500.0,0.00032876,11]
[328304513,1717129845269,-168.23,0.00032876,11]
[328304514,1717129845279,-500.0,0.00032876,11]
[328304516,1717129845288,-605.43,0.00032876,11]
[328304517,1717129845298,-500.0,0.00032876,11]
[328304518,1717129845307,-500.0,0.00032876,11]
[328304519,1717129845317,-490.47,0.00032876,11]
[328304520,1717129845326,-500.0,0.00032876,11]
[328304521,1717129845335,-500.0,0.00032876,11]
[328304522,1717129845344,-500.0,0.00032876,11]
[328304523,1717129845353,-500.0,0.00032876,11]
[328304524,1717129845362,-500.0,0.00032876,11]
[328304525,1717129845371,-524.66,0.00032876,11]
[328304526,1717129845381,-500.0,0.00032876,11]
[328304527,1717129845389,-627.86,0.00032876,11]
[328304528,1717129845398,-500.0,0.00032876,11]
[328304529,1717129845407,-500.0,0.00032876,11]
[328304530,1717129845416,-500.0,0.00032876,11]
[328304531,1717129845425,-500.0,0.00032876,11]
[328304532,1717129845434,-510.24306865,0.00032876,11]
[328304533,1717129845444,-500.0,0.00032876,11]
[328304534,1717129845453,-597.70595973,0.00032876,11]
[328304535,1717129845462,-580.89,0.00032876,11]
[328304536,1717129845471,-500.0,0.00032876,11]
[328304537,1717129845481,-500.0,0.00032876,11]
[328304538,1717129845490,-500.0,0.00032876,11]
[328304539,1717129845499,-500.0,0.00032876,11]
[328304540,1717129845508,-266.12,0.00032876,11]
[328304541,1717129845517,-500.0,0.00032876,11]
[328304542,1717129845526,-500.0,0.00032876,11]
[328304543,1717129845535,-500.0,0.00032876,11]
[328304544,1717129845544,-515.30890942,0.00032876,11]
[328304545,1717129845553,-640.81,0.00032876,11]
[328304546,1717129845562,-500.0,0.00032876,11]
[328304547,1717129845571,-500.0,0.00032876,11]
[328304548,1717129845580,-500.0,0.00032876,11]
[328304549,1717129845589,-500.0,0.00032876,11]
[328304550,1717129845598,-222.4,0.00032876,11]
[328304551,1717129845608,-500.0,0.00032876,11]
[328304552,1717129845617,-500.0,0.00032876,11]
[328304553,1717129845627,-500.0,0.00032876,11]
[328304555,1717129845637,-288.62691623,0.00032876,11]
[328304557,1717129845647,-500.0,0.00032876,11]
[328304559,1717129845656,-500.0,0.00032876,11]
[328304561,1717129845665,-518.70350557,0.00032876,11]
[328304562,1717129845674,-500.0,0.00032876,11]
[328304563,1717129845683,-500.0,0.00032876,11]
[328304564,1717129845692,-517.31552948,0.00032876,11]
[328304565,1717129845701,-500.0,0.00032876,7]
[328304566,1717129845710,-500.0,0.00032876,11]
[328304567,1717129845719,-500.0,0.00032876,7]
[328304568,1717129845729,-616.82,0.00032876,11]
[328304569,1717129845738,-500.0,0.00032876,7]
[328304570,1717129845747,-500.0,0.00032876,11]
[328304571,1717129845756,-500.0,0.00032876,11]
[328304572,1717129845765,-514.39590317,0.00032876,11]
[328304573,1717129845774,-500.0,0.00032876,11]
[328304574,1717129845783,-500.0,0.00032876,11]
[328304575,1717129845792,-272.49,0.00032876,11]
[328304576,1717129845801,-500.0,0.00032876,11]
[328304577,1717129845810,-500.0,0.00032876,11]
[328304578,1717129845819,-617.3,0.00032876,11]
[328304579,1717129845828,-510.57150396,0.00032876,11]
[328304580,1717129845838,-500.0,0.00032876,11]
[328304581,1717129845847,-173.88,0.00032876,11]
[328304582,1717129845855,-500.0,0.00032876,11]
[328304583,1717129845864,-390.9,0.00032876,11]
[328304584,1717129845876,-500.0,0.00032876,11]
[328304585,1717129845887,-500.0,0.00032876,11]
[328304586,1717129845899,-500.0,0.00032876,11]
[328304587,1717129845911,-500.0,0.00032876,11]
[328304588,1717129845922,-500.0,0.00032876,11]
[328304589,1717129845934,-500.0,0.00032876,11]
[328304590,1717129845944,-356.04,0.00032876,11]
[328304591,1717129845955,-500.0,0.00032876,11]
[328304592,1717129845965,-500.0,0.00032876,11]
[328304593,1717129845975,-516.41088395,0.00032876,11]
[328304594,1717129845986,-500.0,0.00032876,11]
[328304595,1717129845997,-500.0,0.00032876,11]
[328304596,1717129846008,-500.0,0.00032876,11]
[328304597,1717129846019,-500.0,0.00032876,11]
[328304598,1717129846029,-500.0,0.00032876,11]
[328304599,1717129846040,-500.0,0.00032876,11]
[328304600,1717129846051,-516.85973928,0.00032876,11]
[328304601,1717129846062,-500.0,0.00032876,11]
[328304602,1717129846072,-161.2,0.00032876,11]
[328304603,1717129846084,-500.0,0.00032876,11]
[328304604,1717129846095,-511.18768019,0.00032876,11]
[328304605,1717129846105,-500.0,0.00032876,11]
[328304606,1717129846116,-500.0,0.00032876,11]
[328304607,1717129846128,-469.50917355,0.00032876,11]
[328304608,1717129846141,-511.59886133,0.00032876,11]
[328304609,1717129846153,-500.0,0.00032876,11]
[328304610,1717129846164,-275.13,0.00032876,11]
[328304611,1717129846175,-500.0,0.00032876,11]
[328304612,1717129846186,-510.04202169,0.00032876,11]
[328304613,1717129846196,-517.52293916,0.00032876,11]
[328304614,1717129846206,-519.93867243,0.00032876,11]
[328304615,1717129846216,-620.99920154,0.00032876,11]
[328304616,1717129846227,-150.0,0.00032876,11]
[328304617,1717129846240,-500.0,0.00032876,11]
[328304618,1717129846252,-150.0,0.00032876,11]
[328304619,1717129846263,-243.88,0.00032876,11]
[328304620,1717129846273,-500.0,0.00032876,11]